{"text_format":"1","workbook":"xlsx","n_sheets":6,"sheets":["Pažyma pildymui biudžetinėms","Pažyma pildymui kitoms ","Pažyma biudžetinėms pvz.  ","Pažyma kitos (nebiudžet.) pvz.","Atostogų išmokų FN","Papild.poilsio d. išmokų FN "],"not_rendered":{"charts":0,"images":0,"macros":0,"external_links":0,"defined_names":6,"comments":0,"pivot_tables":0},"unopened":[],"bounds":{"document_bytes":16777216,"sheet_cells":100000,"rows_first":2000,"rows_last":500,"rows_between":2000,"halvings":0,"cell_chars":16384,"cell_head_chars":4096},"cells_cut":0,"cells_raw":0,"read":"whole","date_system":"1900"}

{"sheet":"Pažyma pildymui biudžetinėms","index":0,"n_rows":44,"n_cols":22,"rows_kept":44,"cut":false,"hidden":false,"merged":[[1,5,1,9],[3,1,3,6],[3,7,3,11],[5,1,5,14],[0,0,0,13],[8,19,10,19],[8,20,10,20],[8,21,10,21],[27,1,27,6],[6,1,6,6],[8,13,10,13],[8,14,10,14],[8,15,10,15],[8,16,10,16],[8,17,10,17],[8,7,10,7],[8,8,10,8],[8,9,10,9],[8,10,10,10],[8,11,10,11],[8,12,10,12],[28,1,28,17],[8,18,10,18],[8,5,10,5],[8,6,10,6],[30,1,30,17],[8,4,10,4],[29,1,29,17],[8,1,10,1],[8,2,10,2],[8,3,10,3],[31,1,31,17],[32,1,32,17],[33,1,33,15],[35,4,35,8],[35,14,35,15]]}
["ATKREIPIAME DĖMESĮ !\n1. Lentelėje turi būti pildomi tik balti laukeliai (pagal PĮP informaciją)\n2. Užpildę formą, išsaugokite ją MS Excel bylos formatu (.xlsx). Per DMS galima pateikti šį dokumentą tik .xlsx formatu",null,null,null,null,null,null,null,null,null,null,null,null,null,"F-PRV-PV-11(ES(2021-2027)/02"]
[null,null,null,null,null,"PAŽYMA DARBO UŽMOKESČIO APSKAIČIAVIMUI",null,null,null,null,null,null,null,null,1]
[]
[null,"Pareiškėjo / Jungtinio projekto pareiškėjo / projekto partnerio pavadinimas (partneriai pildo atskiras lenteles, kiek patnerių, tiek lentelių)",null,null,null,null,null,null,null,null,null,null,null,null,null,null,null,null,null,null,null,0.17249999999999999]
[null,null,null,null,null,null,null,null,null,null,null,null,null,null,null,null,null,null,null,null,null,0.18890000000000001]
[null,"INFORMACIJA APIE PLANUOJAMĄ DARBO UŽMOKESTĮ (DU)",null,null,null,null,null,null,null,null,null,null,null,null,null,null,null,null,null,null,null,0.20019999999999999]
[null,"Organizacijos tipas (1)",null,null,null,null,null,"Biudžetinė",{"$f":"+IF(H7=\"Biudžetinė\",0.0014,IF(H7=\"Verslo įm. ir kt.\",0.0046,IF(H7=\"Kitos organizacijos**\",0.003,0)))","v":1.4E-3}]
[]
[null,"Eil. Nr.","Projekto poveiklės Nr. (iš PĮP) ","Veiksmo / išlaidų tipo Nr. (iš PĮP)","Pareigos PĮP","Planuojamas etatų/ darbuotojų skaičius projekte","Darbo sutarties tipas (nuo tipo priklauso įmokos tarifas Nedarbo socialiniam draudimui)","Metai, už kuriuos planuojamas DU (pildoma, jei taikomas padidėjimas)","Planuojamų mėn. / valandų skaičius (palikti taikomą) ","Planuojamas pareiginis DU/ valandinis įkainis,  Eur (palikti taikomą) (2)","Priedai ir priemokos, Eur (3)","Padidėjimas, proc. (jei taikoma) (4)","Padidėjimo suma, Eur (jei taikoma)","Planuojamas DU  įkainis be darbdavio įmokų iš viso, Eur","Planuojams DU įkainis, Eur  (su darbdavio  įmokomis)","Darbo savaitės trukmė darbo dienomis","Kasmetinių atostogų darbo dienų skaičius","Nustatyta kasmetinių atostogų išmokų fiksuotoji norma","Planuojamos kasmetinių atostogų sąnaudos (įskaitant darbdavio įmokas), Eur","Planuojamas DU įkainis iš viso, Eur (su darbdavio įmokomis ir kasm. atost. )","Planuojama DU suma iš viso, Eur","DU įkainio pagrindimas (5)\n"]
[]
[]
[null,1,2,3,4,5,6,7,"8",9,10,11,12,"13=9+10+12",14,15,16,17,18,"19=14+18","20=5*8*19",21]
[null,{"$f":"ROW(A1)","v":1},null,null,null,null,null,null,null,null,null,null,{"$f":"(+J13+K13)*L13","v":0},{"$f":"ROUND(J13+K13+M13,2)","v":0},{"$f":"ROUND(IF($I$7=0%,0,(IF(G13=\"Terminuota\",(1+$I$7+0.0203)*(J13+K13+M13),(1+$I$7+0.0131)*(J13+K13+M13)))),2)","v":0},null,null,{"$f":"IF(OR(P13=\"\",Q13=\"\"),\"\",VLOOKUP(CONCATENATE(P13,\" dienų darbo savaitė\"),'Atostogų išmokų FN'!$A$7:$AH$8,Q13-16)/100)","v":""},{"$f":"IF(O13=0,0,ROUND((O13*R13),2))","v":0},{"$f":"SUM(O13+S13)","v":0},{"$f":"SUM(F13*I13*T13)","v":0}]
[null,{"$f":"ROW(A2)","v":2},null,null,null,null,null,null,null,null,null,null,0,{"$f":"ROUND(J14+K14+M14,2)","v":0},0,null,null,{"$f":"IF(OR(P14=\"\",Q14=\"\"),\"\",VLOOKUP(CONCATENATE(P14,\" dienų darbo savaitė\"),'Atostogų išmokų FN'!$A$7:$AH$8,Q14-16)/100)","v":""},0,{"$f":"SUM(O14+S14)","v":0},0]
[null,3,null,null,null,null,null,null,null,null,null,null,0,0,0,null,null,{"$f":"IF(OR(P15=\"\",Q15=\"\"),\"\",VLOOKUP(CONCATENATE(P15,\" dienų darbo savaitė\"),'Atostogų išmokų FN'!$A$7:$AH$8,Q15-16)/100)","v":""},0,0,0]
[null,{"$f":"ROW(A4)","v":4},null,null,null,null,null,null,null,null,null,null,{"$f":"(+J16+K16)*L16","v":0},{"$f":"ROUND(J16+K16+M16,2)","v":0},{"$f":"ROUND(IF($I$7=0%,0,(IF(G16=\"Terminuota\",(1+$I$7+0.0203)*(J16+K16+M16),(1+$I$7+0.0131)*(J16+K16+M16)))),2)","v":0},null,null,{"$f":"IF(OR(P16=\"\",Q16=\"\"),\"\",VLOOKUP(CONCATENATE(P16,\" dienų darbo savaitė\"),'Atostogų išmokų FN'!$A$7:$AH$8,Q16-16)/100)","v":""},{"$f":"IF(O16=0,0,ROUND((O16*R16),2))","v":0},{"$f":"SUM(O16+S16)","v":0},{"$f":"SUM(F16*I16*T16)","v":0}]
[null,5,null,null,null,null,null,null,null,null,null,null,0,0,0,null,null,{"$f":"IF(OR(P17=\"\",Q17=\"\"),\"\",VLOOKUP(CONCATENATE(P17,\" dienų darbo savaitė\"),'Atostogų išmokų FN'!$A$7:$AH$8,Q17-16)/100)","v":""},0,0,0]
[null,6,null,null,null,null,null,null,null,null,null,null,0,0,0,null,null,{"$f":"IF(OR(P18=\"\",Q18=\"\"),\"\",VLOOKUP(CONCATENATE(P18,\" dienų darbo savaitė\"),'Atostogų išmokų FN'!$A$7:$AH$8,Q18-16)/100)","v":""},0,0,0]
[null,7,null,null,null,null,null,null,null,null,null,null,0,0,0,null,null,{"$f":"IF(OR(P19=\"\",Q19=\"\"),\"\",VLOOKUP(CONCATENATE(P19,\" dienų darbo savaitė\"),'Atostogų išmokų FN'!$A$7:$AH$8,Q19-16)/100)","v":""},0,0,0]
[null,8,null,null,null,null,null,null,null,null,null,null,0,0,0,null,null,{"$f":"IF(OR(P20=\"\",Q20=\"\"),\"\",VLOOKUP(CONCATENATE(P20,\" dienų darbo savaitė\"),'Atostogų išmokų FN'!$A$7:$AH$8,Q20-16)/100)","v":""},0,0,0]
[null,{"$f":"ROW(A9)","v":9},null,null,null,null,null,null,null,null,null,null,{"$f":"(+J21+K21)*L21","v":0},{"$f":"ROUND(J21+K21+M21,2)","v":0},{"$f":"ROUND(IF($I$7=0%,0,(IF(G21=\"Terminuota\",(1+$I$7+0.0203)*(J21+K21+M21),(1+$I$7+0.0131)*(J21+K21+M21)))),2)","v":0},null,null,{"$f":"IF(OR(P21=\"\",Q21=\"\"),\"\",VLOOKUP(CONCATENATE(P21,\" dienų darbo savaitė\"),'Atostogų išmokų FN'!$A$7:$AH$8,Q21-16)/100)","v":""},{"$f":"IF(O21=0,0,ROUND((O21*R21),2))","v":0},{"$f":"SUM(O21+S21)","v":0},{"$f":"SUM(F21*I21*T21)","v":0}]
[null,10,null,null,null,null,null,null,null,null,null,null,0,0,0,null,null,{"$f":"IF(OR(P22=\"\",Q22=\"\"),\"\",VLOOKUP(CONCATENATE(P22,\" dienų darbo savaitė\"),'Atostogų išmokų FN'!$A$7:$AH$8,Q22-16)/100)","v":""},0,0,0]
[null,"Iš viso:",null,null,null,null,null,null,{"$f":"SUBTOTAL(9, INDIRECT(ADDRESS(13, COLUMN()) & \":\" & ADDRESS(ROW() - 1, COLUMN())))","v":0},{"$f":"SUBTOTAL(9, INDIRECT(ADDRESS(13, COLUMN()) & \":\" & ADDRESS(ROW() - 1, COLUMN())))","v":0},{"$f":"SUBTOTAL(9, INDIRECT(ADDRESS(13, COLUMN()) & \":\" & ADDRESS(ROW() - 1, COLUMN())))","v":0},null,{"$f":"SUBTOTAL(9, INDIRECT(ADDRESS(13, COLUMN()) & \":\" & ADDRESS(ROW() - 1, COLUMN())))","v":0},{"$f":"SUBTOTAL(9, INDIRECT(ADDRESS(13, COLUMN()) & \":\" & ADDRESS(ROW() - 1, COLUMN())))","v":0},{"$f":"SUBTOTAL(9, INDIRECT(ADDRESS(13, COLUMN()) & \":\" & ADDRESS(ROW() - 1, COLUMN())))","v":0},null,null,null,{"$f":"SUBTOTAL(9, INDIRECT(ADDRESS(13, COLUMN()) & \":\" & ADDRESS(ROW() - 1, COLUMN())))","v":0},null,{"$f":"SUBTOTAL(9, INDIRECT(ADDRESS(13, COLUMN()) & \":\" & ADDRESS(ROW() - 1, COLUMN())))","v":0}]
[]
[null,"(1)  Atsižvelgiant į organizacijos tipą, nurodomas bendras įmokų tarifas Garantiniam fondui, Ilgalaikio darbo išmokų fondui ir Nelaimingų atsitikimų darbe ir profesinių ligų socialiniam draudimui."]
[null,"(2) Pareiginė alga apskaičiuojama pareiginės algos koeficientą dauginant iš pareiginės algos (atlyginimo) bazinio dydžio, kuris pavyzdžiui 2024 m. yra 1 785,4 euro. Šiame langelyje įrašykite taikomą koeficiento dydį x pareiginės algos (atlyginimo) bazinis dydį."]
[null,"(3)  Jei mokamas priedas ar priemoka, nurodyti pagrindą bei pakomentuoti, už ką konkrečiai (išskyrus netinkamas išlaidas, nurodytas Rekomendacijų dėl projektų išlaidų atitikties Europos Sąjungos fondų reikalavimų  9.5. p.).  Jei projekte įdarbinami valstybės tarnautojai, nurodyti taikomą priemokos dydį, kuris turėtų neviršyti LR valstybės tarnybos įstatyme numatytų dydžių."]
[null,"https://www.e-tar.lt/portal/lt/legalAct/TAR.D3ED3792F52B/asr "]
[null,"(4) Skaičiuojant planuojamą darbo valandos (mėnesio) įkainį gali būti įvertinamas numatomas įkainio kitimas projekto įgyvendinimo metu, remiantis Lietuvos banko interneto svetainėje lb.lt skelbiamomis naujausiomis darbo užmokesčio prognozėmis. Tačiau įgyvendinant projektą darbo užmokesčio padidėjimas turi būti pagrįstas ir visais atvejais atitikti Projektų administravimo ir finansavimo taisyklių 301.1 papunkčio reikalavimus (netaikoma einamiesiems metams):"]
[null,"https://www.lb.lt/lt/mv-ekonomikos-analize-ir-prognozes\n\n\n\n"]
[null,"(5) Biudžetinių įstaigų atvejais - pagrįsti, ar suplanuotoms pareigybėms nustatytas darbo užmokesčio dydis atitinka LR valstybės ir savivaldybių įstaigų darbuotojų darbo apmokėjimo ir komisijos narių atlygio darbą įstatyme ar kt.:\n"]
[null,"https://www.e-tar.lt/portal/lt/legalAct/2d8b78b0e79411e68503b67e3b82e8bd/asr\n"]
[null,"Jei viršija koeficientą, pateikti papildomą pagrindimą (pvz.: pareigybės įtrauktos į trūkstamų pareigybių sąrašą (nurodant profesijos pavadinimą arba kodą iš sąrašo) arba kt.)"]
[null,"https://www.e-tar.lt/portal/lt/legalAct/57268900f6ef11e89fcaa4a4a9822176/asr"]
[null,"Jei įstaigoje nėra projekte numatomos pareigybės atitikmens ir istorinių duomenų, DU dydžiai turi būti pagrįsti analogiškų ar panašių pareigybių/funkcijų DU dydžiais, kurie įprastai mokami įstaigoje. Aaa"]
[]
[]
[]
[]
[]
[]
[]
[]
[null,null,null,null,null,null,null,null,null,null,null,null,null,null,null,null," "]

{"sheet":"Pažyma pildymui kitoms ","index":1,"n_rows":44,"n_cols":25,"rows_kept":44,"cut":false,"hidden":false,"merged":[[2,1,2,17],[3,1,3,7],[3,8,3,12],[1,5,1,9],[5,1,5,17],[6,1,6,7],[8,1,10,1],[8,2,10,2],[8,3,10,3],[8,4,10,4],[8,6,10,6],[8,7,10,7],[29,1,29,16],[8,21,10,21],[8,23,10,23],[8,24,10,24],[8,8,10,8],[8,9,10,9],[8,17,10,17],[8,16,10,16],[9,14,10,14],[9,15,10,15],[8,22,10,22],[35,4,35,9],[35,17,35,18],[33,1,33,20],[0,0,0,11],[31,1,31,20],[8,18,10,18],[8,19,10,19],[8,20,10,20],[32,1,32,20],[8,10,10,10],[8,11,10,11],[8,12,10,12],[8,13,10,13],[8,5,10,5],[27,1,27,14],[28,1,28,16]]}
["ATKREIPIAME DĖMESĮ !\n1. Lentelėje turi būti pildomi tik balti laukeliai (pagal PĮP informaciją)\n2. Užpildę formą, išsaugokite ją MS Excel bylos formatu (.xlsx). Per DMS galima pateikti šį dokumentą tik .xlsx formatu",null,null,null,null,null,null,null,null,null,null,null,null,"F-PRV-PV-11(ES(2021-2027)/02"]
[null,null,null,null,null,"PAŽYMA DARBO UŽMOKESČIO APSKAIČIAVIMUI",null,null,null,null,null,null,null,null,null,null,null,null,1]
[null,null,null,null,null,null,null,null,null,null,null,null,null,null,null,null,null,null,null,null,null,null,null,null,0.1235]
[null,"Pareiškėjo / Jungtinio projekto pareiškėjo / projekto partnerio pavadinimas (partneriai pildo atskiras lenteles, kiek patnerių, tiek lentelių)",null,null,null,null,null,null,null,null,null,null,null,null,null,null,null,null,null,null,null,null,null,null,0.17249999999999999]
[]
[null,"INFORMACIJA APIE PLANUOJAMĄ DARBO UŽMOKESTĮ (DU)             ",null,null,null,null,null,null,null,null,null,null,null,null,null,null,null,null,null,null,null,null,null,null,0.20019999999999999]
[null,"Organizacijos tipas (1)",null,null,null,null,null,null,"Verslo įm. ir kt.(2)",{"$f":"+IF(I7=\"Biudžetinė\",0.0014,IF(I7=\"Verslo įm. ir kt.(2)\",0.0046,IF(I7=\"Kitos organizacijos(3)\",0.003,0)))","v":4.5999999999999999E-3}]
[]
[null,"Eil. Nr.","Projekto poveiklės Nr. (iš PĮP) ","Veiksmo / išlaidų tipo Nr. (iš PĮP)","Pareigos PĮP","Pareigos / Pareigybė įstaigoje, kurios duomenimis grindžiamas įkainis (4)","Planuojamas etatų/ darbuotojų skaičius projekte","Darbo sutarties tipas (nuo tipo priklauso įmokos tarifas Nedarbo socialiniam draudimui)","Metai, už kuriuos planuojamas DU (pildoma, jei taikomas padidėjimas)","Planuojamų mėn. / valandų skaičius ","Planuojamas pareiginis DU/ valandinis įkainis,  Eur","Priedai ir priemokos, Eur (5)","Padidėjimas, proc.  (jei taikoma) (6)","Padidėjimo suma, Eur (jei taikoma)",null,null,"Planuojamas DU  įkainis be darbdavio įmokų iš viso, Eur","Planuojams DU įkainis su darbdavio  įmokomis iš viso, Eur","Darbo savaitės trukmė darbo dienomis","Kasmetinių atostogų darbo dienų skaičius","Nustatyta kasmetinių atostogų išmokų fiksuotoji norma","Planuojamos kasmetinių atostogų sąnaudos (įskaitant darbdavio įmokas), Eur","Planuojamas DU įkainis iš viso, Eur (su darbdavio įmokomis ir kasm. atost. )","Planuojama DU suma iš viso, Eur","DU įkainio pagrindimas (7)\n"]
[]
[]
[null,1,2,3,4,5,6,7,8,"9",10,11,12,13,15,16,"14=10+11+13",15,16,17,18,19,"20=15+19","21=6*9*20",22]
[null,{"$f":"ROW(A1)","v":1},null,null,null,null,null,null,null,null,null,null,null,{"$f":"ROUND((+K13+L13)*M13,2)","v":0},null,null,{"$f":"ROUND(K13+L13+N13+O13+P13,2)","v":0},{"$f":"ROUND(IF($J$7=0%,0,(IF(H13=\"Terminuota\",(1+$J$7+0.0203)*(K13+L13+N13+P13+O13),(1+$J$7+0.0131)*(K13+L13+N13+P13+O13)))),2)","v":0},null,null,{"$f":"IF(OR(S13=\"\",T13=\"\"),\"\",VLOOKUP(CONCATENATE(S13,\" dienų darbo savaitė\"),'Atostogų išmokų FN'!$A$7:$AH$8,T13-16)/100)","v":""},{"$f":"IF(R13=0,0,ROUND((R13*U13),2))","v":0},{"$f":"SUM(R13+V13)","v":0},{"$f":"SUM(G13*J13*W13)","v":0}]
[null,{"$f":"ROW(A2)","v":2},null,null,null,null,null,null,null,null,null,null,null,{"$f":"ROUND((+K14+L14)*M14,2)","v":0},null,null,{"$f":"ROUND(K14+L14+N14+O14+P14,2)","v":0},{"$f":"ROUND(IF($J$7=0%,0,(IF(H14=\"Terminuota\",(1+$J$7+0.0203)*(K14+L14+N14+P14+O14),(1+$J$7+0.0131)*(K14+L14+N14+P14+O14)))),2)","v":0},null,null,{"$f":"IF(OR(S14=\"\",T14=\"\"),\"\",VLOOKUP(CONCATENATE(S14,\" dienų darbo savaitė\"),'Atostogų išmokų FN'!$A$7:$AH$8,T14-16)/100)","v":""},0,0,{"$f":"SUM(G14*J14*W14)","v":0}]
[null,{"$f":"ROW(A3)","v":3},null,null,null,null,null,null,null,null,null,null,null,{"$f":"ROUND((+K15+L15)*M15,2)","v":0},null,null,{"$f":"ROUND(K15+L15+N15+O15+P15,2)","v":0},{"$f":"ROUND(IF($J$7=0%,0,(IF(H15=\"Terminuota\",(1+$J$7+0.0203)*(K15+L15+N15+P15+O15),(1+$J$7+0.0131)*(K15+L15+N15+P15+O15)))),2)","v":0},null,null,{"$f":"IF(OR(S15=\"\",T15=\"\"),\"\",VLOOKUP(CONCATENATE(S15,\" dienų darbo savaitė\"),'Atostogų išmokų FN'!$A$7:$AH$8,T15-16)/100)","v":""},0,0,{"$f":"SUM(G15*J15*W15)","v":0}]
[null,{"$f":"ROW(A4)","v":4},null,null,null,null,null,null,null,null,null,null,null,{"$f":"ROUND((+K16+L16)*M16,2)","v":0},null,null,{"$f":"ROUND(K16+L16+N16+O16+P16,2)","v":0},{"$f":"ROUND(IF($J$7=0%,0,(IF(H16=\"Terminuota\",(1+$J$7+0.0203)*(K16+L16+N16+P16+O16),(1+$J$7+0.0131)*(K16+L16+N16+P16+O16)))),2)","v":0},null,null,{"$f":"IF(OR(S16=\"\",T16=\"\"),\"\",VLOOKUP(CONCATENATE(S16,\" dienų darbo savaitė\"),'Atostogų išmokų FN'!$A$7:$AH$8,T16-16)/100)","v":""},{"$f":"IF(R16=0,0,ROUND((R16*U16),2))","v":0},{"$f":"SUM(R16+V16)","v":0},{"$f":"SUM(G16*J16*W16)","v":0}]
[null,5,null,null,null,null,null,null,null,null,null,null,null,0,null,null,0,0,null,null,{"$f":"IF(OR(S17=\"\",T17=\"\"),\"\",VLOOKUP(CONCATENATE(S17,\" dienų darbo savaitė\"),'Atostogų išmokų FN'!$A$7:$AH$8,T17-16)/100)","v":""},0,0,0]
[null,6,null,null,null,null,null,null,null,null,null,null,null,{"$f":"ROUND((+K18+L18)*M18,2)","v":0},null,null,{"$f":"ROUND(K18+L18+N18+O18+P18,2)","v":0},{"$f":"ROUND(IF($J$7=0%,0,(IF(H18=\"Terminuota\",(1+$J$7+0.0203)*(K18+L18+N18+P18+O18),(1+$J$7+0.0131)*(K18+L18+N18+P18+O18)))),2)","v":0},null,null,{"$f":"IF(OR(S18=\"\",T18=\"\"),\"\",VLOOKUP(CONCATENATE(S18,\" dienų darbo savaitė\"),'Atostogų išmokų FN'!$A$7:$AH$8,T18-16)/100)","v":""},{"$f":"IF(R18=0,0,ROUND((R18*U18),2))","v":0},{"$f":"SUM(R18+V18)","v":0},{"$f":"SUM(G18*J18*W18)","v":0}]
[null,7,null,null,null,null,null,null,null,null,null,null,null,0,null,null,0,0,null,null,{"$f":"IF(OR(S19=\"\",T19=\"\"),\"\",VLOOKUP(CONCATENATE(S19,\" dienų darbo savaitė\"),'Atostogų išmokų FN'!$A$7:$AH$8,T19-16)/100)","v":""},0,0,0]
[null,8,null,null,null,null,null,null,null,null,null,null,null,0,null,null,0,0,null,null,{"$f":"IF(OR(S20=\"\",T20=\"\"),\"\",VLOOKUP(CONCATENATE(S20,\" dienų darbo savaitė\"),'Atostogų išmokų FN'!$A$7:$AH$8,T20-16)/100)","v":""},0,0,0]
[null,9,null,null,null,null,null,null,null,null,null,null,null,0,null,null,0,0,null,null,{"$f":"IF(OR(S21=\"\",T21=\"\"),\"\",VLOOKUP(CONCATENATE(S21,\" dienų darbo savaitė\"),'Atostogų išmokų FN'!$A$7:$AH$8,T21-16)/100)","v":""},0,0,0]
[null,10,null,null,null,null,null,null,null,null,null,null,null,0,null,null,0,0,null,null,{"$f":"IF(OR(S22=\"\",T22=\"\"),\"\",VLOOKUP(CONCATENATE(S22,\" dienų darbo savaitė\"),'Atostogų išmokų FN'!$A$7:$AH$8,T22-16)/100)","v":""},0,0,0]
[null,"Iš viso:",null,null,null,null,null,null,null,{"$f":"SUBTOTAL(9, INDIRECT(ADDRESS(13, COLUMN()) & \":\" & ADDRESS(ROW() - 1, COLUMN())))","v":0},{"$f":"SUBTOTAL(9, INDIRECT(ADDRESS(13, COLUMN()) & \":\" & ADDRESS(ROW() - 1, COLUMN())))","v":0},{"$f":"SUBTOTAL(9, INDIRECT(ADDRESS(13, COLUMN()) & \":\" & ADDRESS(ROW() - 1, COLUMN())))","v":0},null,{"$f":"SUBTOTAL(9, INDIRECT(ADDRESS(13, COLUMN()) & \":\" & ADDRESS(ROW() - 1, COLUMN())))","v":0},{"$f":"SUBTOTAL(9,O13:O15)","v":0},null,{"$f":"SUBTOTAL(9, INDIRECT(ADDRESS(13, COLUMN()) & \":\" & ADDRESS(ROW() - 1, COLUMN())))","v":0},{"$f":"SUBTOTAL(9, INDIRECT(ADDRESS(13, COLUMN()) & \":\" & ADDRESS(ROW() - 1, COLUMN())))","v":0},null,null,null,{"$f":"SUBTOTAL(9, INDIRECT(ADDRESS(13, COLUMN()) & \":\" & ADDRESS(ROW() - 1, COLUMN())))","v":0},{"$f":"SUBTOTAL(9, INDIRECT(ADDRESS(13, COLUMN()) & \":\" & ADDRESS(ROW() - 1, COLUMN())))","v":0},{"$f":"SUBTOTAL(9, INDIRECT(ADDRESS(13, COLUMN()) & \":\" & ADDRESS(ROW() - 1, COLUMN())))","v":0}]
[]
[null,"(1) Organizacijos tipas pasirenkamas iš sąrašo. Atsižvelgiant į pasirinktą organizacijos tipą, nurodomas bendras įmokų tarifas Garantiniam fondui, Ilgalaikio darbo išmokų fondui ir Nelaimingų atsitikimų darbe ir profesinių ligų socialiniam draudimui."]
[null,"(2) Taikoma viešosioms įstaigoms, UAB, AB ir kt."]
[null,"(3) Taikoma politinėms partijoms, profesinėms sąjungoms, religinėms bendruomenėms ir bendrijoms."]
[null,"(4) analogiškos arba tos pačios pareigos/funkcijos įstaigoje. Jei įstaigoje nėra projekte numatomos pareigybės atitikmens ir istorinių duomenų, darbo užmokesčio dydis gali būti pagrįstas, remiantis oficialiosios statistikos portale (Rodiklių duomenų bazė) Valstybės duomenų agentūros skelbiamais naujausiais statistiniais darbuotojų vidutinio darbo užmokesčio duomenimis"]
[null,"https://osp.stat.gov.lt/statistiniu-rodikliu-analize?indicator=S3R0049#/  valandinis bruto"]
[null,"https://osp.stat.gov.lt/statistiniu-rodikliu-analize?indicator=S3R0050#/  mėnesinis bruto"]
[null,"(5) Planuojamas priedas ar priemoka turi atitikti  Rekomendacijų dėl projektų išlaidų atitikties Europos Sąjungos fondų reikalavimų  9.5. p. nurodytus tinkamų finansuoti išlaidų reikalavimus;"]
[null,"(6) Skaičiuojant planuojamą darbo valandos (mėnesio) įkainį gali būti įvertinamas numatomas įkainio kitimas projekto įgyvendinimo metu, remiantis Lietuvos banko interneto svetainėje lb.lt skelbiamomis naujausiomis darbo užmokesčio prognozėmis. Tačiau įgyvendinant projektą darbo užmokesčio padidėjimas turi būti pagrįstas ir visais atvejais atitikti Projektų administravimo ir finansavimo taisyklių (Taisyklių) 301.1 papunkčio reikalavimus (netaikoma ein. metams):"]
[null,"https://www.lb.lt/lt/mv-ekonomikos-analize-ir-prognozes"]
[null,"(7) Pagal Taisyklių 301.1. p. darbo užmokesčio išlaidos yra tinkamos finansuoti, jei jų dydis atitinka įprastą projekto vykdytojo, partnerio arba JP projekto vykdytojo darbo užmokesčio praktiką atitinkamos kategorijos pareigoms arba pagal taikomą nacionalinę teisę, kolektyvines sutartis ar oficialią statistiką. DU įkainio pagrindimui pateikti darbo užmokesčio dydį pagrindžiančius dokumentus (pvz.: nuasmenintas darbo sutartis, kurios sudarytos ne šiam projektui, o bendrai įstaigos praktikoje;  įstaigos DU priskaitymo ir išmokėjimo žiniaraščius 3- 12 mėn. (kuriuose matytųsi pareigos, dirbtas laikas, priskaitytas DU, priedai ir priemokos (jei taikoma); kt.). Biudžete numatytų išlaidų dydis turi neviršyti įprastai įstaigoje mokamo darbo užmokesčio dydžių tam tikrai pareigybei.\n\n\n"]
[]
[]
[]
[]
[]
[]
[]
[]
[]
[null,null,null,null,null,null,null,null,null,null,null,null,null,null,null,null,null,null,null," "]

{"sheet":"Pažyma biudžetinėms pvz.  ","index":2,"n_rows":44,"n_cols":22,"rows_kept":44,"cut":false,"hidden":false,"merged":[[0,1,0,11],[29,1,29,17],[8,10,10,10],[8,11,10,11],[8,12,10,12],[8,3,10,3],[8,13,10,13],[8,4,10,4],[28,1,28,17],[8,9,10,9],[2,1,2,14],[3,1,3,6],[8,16,10,16],[5,1,5,14],[8,1,10,1],[8,14,10,14],[6,1,6,6],[3,7,3,11],[8,6,10,6],[8,7,10,7],[8,8,10,8],[30,1,30,17],[1,5,1,9],[8,21,10,21],[35,4,35,8],[35,14,35,15],[8,15,10,15],[8,20,10,20],[8,5,10,5],[8,17,10,17],[8,18,10,18],[32,1,32,17],[33,1,33,15],[31,1,31,17],[27,1,27,6],[8,19,10,19],[8,2,10,2]]}
[null,"ATKREIPIAME DĖMESĮ !\n1. Lentelėje turi būti pildomi tik balti laukeliai (pagal PĮP informaciją)\n2. Užpildę formą, išsaugokite ją MS Excel bylos formatu (.xlsx). Per DMS galima pateikti šį dokumentą tik .xlsx formatu",null,null,null,null,null,null,null,null,null,null,"F-PRV-PV-11(ES(2021-2027)/02",null,null,null,null,null,null,null,null,0.10440000000000001]
[null,null,null,null,null,"PAŽYMA DARBO UŽMOKESČIO APSKAIČIAVIMUI (pavyzdys)"]
[null,null,null,null,null,null,null,null,null,null,null,null,null,null,null,null,null,null,null,null,null,0.1235]
[null,"Pareiškėjo / Jungtinio projekto pareiškėjo / projekto partnerio pavadinimas (partneriai pildo atskiras lenteles, kiek patnerių, tiek lentelių)",null,null,null,null,null,null,null,null,null,null,null,null,null,null,null,null,null,null,null,0.17249999999999999]
[null,null,null,null,null,null,null,null,null,null,null,null,null,null,null,null,null,null,null,null,null,0.18890000000000001]
[null,"INFORMACIJA APIE PLANUOJAMĄ DARBO UŽMOKESTĮ (DU)",null,null,null,null,null,null,null,null,null,null,null,null,null,null,null,null,null,null,null,0.20019999999999999]
[null,"Organizacijos tipas (1)",null,null,null,null,null,"Biudžetinė",{"$f":"+IF(H7=\"Biudžetinė\",0.0014,IF(H7=\"Verslo įm. ir kt.\",0.0046,IF(H7=\"Kitos organizacijos**\",0.003,0)))","v":1.4E-3}]
[]
[null,"Eil. Nr.","Projekto poveiklės Nr. (iš PĮP) ","Veiksmo / išlaidų tipo Nr. (iš PĮP)","Pareigos PĮP","Planuojamas etatų/ darbuotojų skaičius projekte","Darbo sutarties tipas (nuo tipo priklauso įmokos tarifas Nedarbo socialiniam draudimui)","Metai, už kuriuos planuojamas DU (pildoma, jei taikomas padidėjimas)","Planuojamų mėn. / valandų skaičius (palikti taikomą) ","Planuojamas pareiginis DU/ valandinis įkainis,  Eur (palikti taikomą) (2)","Priedai ir priemokos, Eur (3)","Padidėjimas, proc. (jei taikoma) (4)","Padidėjimo suma, Eur (jei taikoma)","Planuojamas DU  įkainis be darbdavio įmokų iš viso, Eur","Planuojams DU įkainis, Eur  (su darbdavio  įmokomis)","Darbo savaitės trukmė darbo dienomis","Kasmetinių atostogų darbo dienų skaičius","Nustatyta kasmetinių atostogų išmokų fiksuotoji norma","Planuojamos kasmetinių atostogų sąnaudos (įskaitant darbdavio įmokas), Eur","Planuojamas DU įkainis iš viso, Eur (su darbdavio įmokomis ir kasm. atost. )","Planuojama DU suma iš viso, Eur","DU įkainio pagrindimas (5)\n"]
[]
[]
[null,1,2,3,4,5,6,7,"8",9,10,11,12,"13=9+10+12",14,15,16,17,18,"19=14+18","20=5*8*19",21]
[null,{"$f":"ROW(A1)","v":1},"1.2.","1.2.1.","Analitikas",3,"Terminuota",null,36,{"$f":"1.3*1785.4","v":2321.02},null,null,{"$f":"(+J13+K13)*L13","v":0},{"$f":"ROUND(J13+K13+M13,2)","v":2321.02},{"$f":"ROUND(IF($I$7=0%,0,(IF(G13=\"Terminuota\",(1+$I$7+0.0203)*(J13+K13+M13),(1+$I$7+0.0131)*(J13+K13+M13)))),2)","v":2371.39},5,20,{"$f":"IF(OR(P13=\"\",Q13=\"\"),\"\",VLOOKUP(CONCATENATE(P13,\" dienų darbo savaitė\"),'Atostogų išmokų FN'!$A$7:$AH$8,Q13-16)/100)","v":8.6300000000000002E-2},{"$f":"IF(O13=0,0,ROUND((O13*R13),2))","v":204.65},{"$f":"SUM(O13+S13)","v":2576.04},{"$f":"SUM(F13*I13*T13)","v":278212.32},"Pvz.: taikomas koeficientas 9, plius kintamas priedas 20 proc., plius 30 proc. priemoka už ...... arba taikomas koef. 16, nes pareigos (IT specialistas - koeficientas 8) patenka į trūkstamų pareigybių sąrašą, ir t.t."]
[null,{"$f":"ROW(A2)","v":2},"1.2.","1.2.1.","Ekspertas",1,"Terminuota","2024",8,null,{"$f":"9*186*0.2","v":334.8},0.05,{"$f":"(+J14+K14)*L14","v":16.740000000000002},{"$f":"ROUND(J14+K14+M14,2)","v":351.54},{"$f":"ROUND(IF($I$7=0%,0,(IF(G14=\"Terminuota\",(1+$I$7+0.0203)*(J14+K14+M14),(1+$I$7+0.0131)*(J14+K14+M14)))),2)","v":359.17},5,32,{"$f":"IF(OR(P14=\"\",Q14=\"\"),\"\",VLOOKUP(CONCATENATE(P14,\" dienų darbo savaitė\"),'Atostogų išmokų FN'!$A$7:$AH$8,Q14-16)/100)","v":0.14990000000000001},53.84,{"$f":"SUM(O14+S14)","v":413.01},3304.08,"Valstybės tarnautojas, taikoma 20 proc. priemoka  nuo pareiginio DU , vadovaujantis .... (kai įdarbinamas valstybės tarnautojas, įrašykite taikomą koeficiento dydį x BMA x priemokos proc.)"]
[null,3,"1.4.","1.4.1.","Projekto specialistas",1,"Neterminuota","2025",10,{"$f":"1.1*1785.4","v":1963.9400000000003},{"$f":"9*186*0.2","v":334.8},0.05,{"$f":"(+J15+K15)*L15","v":114.93700000000001},{"$f":"ROUND(J15+K15+M15,2)","v":2413.6799999999998},{"$f":"ROUND(IF($I$7=0%,0,(IF(G15=\"Terminuota\",(1+$I$7+0.0203)*(J15+K15+M15),(1+$I$7+0.0131)*(J15+K15+M15)))),2)","v":2448.6799999999998},5,20,{"$f":"IF(OR(P15=\"\",Q15=\"\"),\"\",VLOOKUP(CONCATENATE(P15,\" dienų darbo savaitė\"),'Atostogų išmokų FN'!$A$7:$AH$8,Q15-16)/100)","v":8.6300000000000002E-2},211.32,2660,26600]
[null,4,null,null,null,null,null,null,null,null,null,null,0,0,0,null,null,{"$f":"IF(OR(P16=\"\",Q16=\"\"),\"\",VLOOKUP(CONCATENATE(P16,\" dienų darbo savaitė\"),'Atostogų išmokų FN'!$A$7:$AH$8,Q16-16)/100)","v":""},0,0,0]
[null,5,null,null,null,null,null,null,null,null,null,null,0,0,0,null,null,{"$f":"IF(OR(P17=\"\",Q17=\"\"),\"\",VLOOKUP(CONCATENATE(P17,\" dienų darbo savaitė\"),'Atostogų išmokų FN'!$A$7:$AH$8,Q17-16)/100)","v":""},0,0,0]
[null,6,null,null,null,null,null,null,null,null,null,null,0,0,0,null,null,{"$f":"IF(OR(P18=\"\",Q18=\"\"),\"\",VLOOKUP(CONCATENATE(P18,\" dienų darbo savaitė\"),'Atostogų išmokų FN'!$A$7:$AH$8,Q18-16)/100)","v":""},0,0,0]
[null,7,null,null,null,null,null,null,null,null,null,null,0,0,0,null,null,{"$f":"IF(OR(P19=\"\",Q19=\"\"),\"\",VLOOKUP(CONCATENATE(P19,\" dienų darbo savaitė\"),'Atostogų išmokų FN'!$A$7:$AH$8,Q19-16)/100)","v":""},0,0,0]
[null,8,null,null,null,null,null,null,null,null,null,null,0,0,0,null,null,{"$f":"IF(OR(P20=\"\",Q20=\"\"),\"\",VLOOKUP(CONCATENATE(P20,\" dienų darbo savaitė\"),'Atostogų išmokų FN'!$A$7:$AH$8,Q20-16)/100)","v":""},0,0,0]
[null,9,null,null,null,null,null,null,null,null,null,null,0,0,0,null,null,{"$f":"IF(OR(P21=\"\",Q21=\"\"),\"\",VLOOKUP(CONCATENATE(P21,\" dienų darbo savaitė\"),'Atostogų išmokų FN'!$A$7:$AH$8,Q21-16)/100)","v":""},0,0,0]
[null,10,null,null,null,null,null,null,null,null,null,null,0,0,0,null,null,{"$f":"IF(OR(P22=\"\",Q22=\"\"),\"\",VLOOKUP(CONCATENATE(P22,\" dienų darbo savaitė\"),'Atostogų išmokų FN'!$A$7:$AH$8,Q22-16)/100)","v":""},0,0,0]
[null,"Iš viso:",null,null,null,null,null,null,{"$f":"SUBTOTAL(9,I13:I22)","v":54},{"$f":"SUBTOTAL(9,J13:J22)","v":4284.96},{"$f":"SUBTOTAL(9,K13:K22)","v":669.6},null,{"$f":"SUBTOTAL(9,M13:M22)","v":131.67700000000002},{"$f":"SUBTOTAL(9,N13:N22)","v":5086.24},{"$f":"SUBTOTAL(9,O13:O22)","v":5179.24},null,null,null,{"$f":"SUBTOTAL(9,S13:S22)","v":469.81},null,{"$f":"SUBTOTAL(9,U13:U22)","v":308116.40000000002}]
[]
[null,"(1)  Atsižvelgiant į pasirinktą organizacijos tipą, nurodomas bendras įmokų tarifas Garantiniam fondui, Ilgalaikio darbo išmokų fondui ir Nelaimingų atsitikimų darbe ir profesinių ligų socialiniam draudimui."]
[null,"(2) Pareiginė alga apskaičiuojama pareiginės algos koeficientą dauginant iš pareiginės algos (atlyginimo) bazinio dydžio, kuris pavyzdžiui 2024 m. yra 1 785,4 euro. Šiame langelyje įrašykite taikomą koeficiento dydį x pareiginės algos (atlyginimo) bazinis dydį."]
[null,"(3)  Jei mokamas priedas ar priemoka, nurodyti pagrindą bei pakomentuoti, už ką konkrečiai (išskyrus netinkamas išlaidas, nurodytas Rekomendacijų dėl projektų išlaidų atitikties Europos Sąjungos fondų reikalavimų  9.5. p.).  Jei projekte įdarbinami valstybės tarnautojai, nurodyti taikomą priemokos dydį, kuris turėtų neviršyti LR valstybės tarnybos įstatyme numatytų dydžių."]
[null,"https://www.e-tar.lt/portal/lt/legalAct/TAR.D3ED3792F52B/asr "]
[null,"(4) Skaičiuojant planuojamą darbo valandos (mėnesio) įkainį gali būti įvertinamas numatomas įkainio kitimas projekto įgyvendinimo metu, remiantis Lietuvos banko interneto svetainėje lb.lt skelbiamomis naujausiomis darbo užmokesčio prognozėmis. Tačiau įgyvendinant projektą darbo užmokesčio padidėjimas turi būti pagrįstas ir visais atvejais atitikti Projektų administravimo ir finansavimo taisyklių 301.1 papunkčio reikalavimus (netaikoma einamiesiems metams):"]
[null,"https://www.lb.lt/lt/mv-ekonomikos-analize-ir-prognozes\n\n\n\n"]
[null,"(5) Biudžetinių įstaigų atvejais - pagrįsti, ar suplanuotoms pareigybėms nustatytas darbo užmokesčio dydis atitinka LR valstybės ir savivaldybių įstaigų darbuotojų darbo apmokėjimo ir komisijos narių atlygio darbą įstatyme ar kt.:\n"]
[]
[null,"Jei viršija koeficientą, pateikti papildomą pagrindimą (pvz.: pareigybės įtrauktos į trūkstamų pareigybių sąrašą (nurodant profesijos pavadinimą arba kodą iš sąrašo) arba kt.)"]
[]
[]
[]
[]
[]
[]
[]
[]
[]
[]
[null,null,null,null,null,null,null,null,null,null,null,null,null,null,null,null," "]

{"sheet":"Pažyma kitos (nebiudžet.) pvz.","index":3,"n_rows":50,"n_cols":25,"rows_kept":50,"cut":false,"hidden":false,"merged":[[0,1,2,10],[8,1,8,7],[3,5,3,9],[4,1,4,17],[5,1,5,7],[5,8,5,12],[7,1,7,17],[10,12,12,12],[10,1,12,1],[10,2,12,2],[10,3,12,3],[10,4,12,4],[10,5,12,5],[10,6,12,6],[10,7,12,7],[10,8,12,8],[10,9,12,9],[10,10,12,10],[10,11,12,11],[10,13,12,13],[10,16,12,16],[10,17,12,17],[10,18,12,18],[10,19,12,19],[10,21,12,21],[10,22,12,22],[10,23,12,23],[10,24,12,24],[11,14,12,14],[11,15,12,15],[10,20,12,20],[36,1,36,18],[39,1,39,16],[41,4,41,9],[41,17,41,18],[29,1,29,14],[30,1,30,16],[31,1,31,16],[33,1,33,20],[34,1,34,20],[35,1,35,20]]}
[null,"ATKREIPIAME DĖMESĮ !\n1. Lentelėje turi būti pildomi tik balti laukeliai (pagal PĮP informaciją)\n2. Užpildę formą, išsaugokite ją MS Excel bylos formatu (.xlsx). Per DMS galima pateikti šį dokumentą tik .xlsx formatu",null,null,null,null,null,null,null,null,null,"F-PRV-PV-11(ES(2021-2027)/02"]
[]
[null,null,null,null,null,null,null,null,null,null,null,null,null,null,null,null,null,null,null,null,null,null,null,null,0.10440000000000001]
[null,null,null,null,null,"PAŽYMA DARBO UŽMOKESČIO APSKAIČIAVIMUI (pavyzdys)"]
[null,null,null,null,null,null,null,null,null,null,null,null,null,null,null,null,null,null,null,null,null,null,null,null,0.1235]
[null,"Pareiškėjo / Jungtinio projekto pareiškėjo / projekto partnerio pavadinimas (partneriai pildo atskiras lenteles, kiek patnerių, tiek lentelių)",null,null,null,null,null,null,null,null,null,null,null,null,null,null,null,null,null,null,null,null,null,null,0.17249999999999999]
[null,null,null,null,null,null,null,null,null,null,null,null,null,null,null,null,null,null,null,null,null,null,null,null,0.18890000000000001]
[null,"INFORMACIJA APIE PLANUOJAMĄ DARBO UŽMOKESTĮ (DU)             ",null,null,null,null,null,null,null,null,null,null,null,null,null,null,null,null,null,null,null,null,null,null,0.20019999999999999]
[null,"Organizacijos tipas (1)",null,null,null,null,null,null,"Verslo įm. ir kt.(2)",{"$f":"+IF(I9=\"Biudžetinė\",0.0014,IF(I9=\"Verslo įm. ir kt.(2)\",0.0046,IF(I9=\"Kitos organizacijos(3)\",0.003,0)))","v":4.5999999999999999E-3}]
[]
[null,"Eil. Nr.","Projekto poveiklės Nr. (iš PĮP) ","Veiksmo / išlaidų tipo Nr. (iš PĮP)","Pareigos PĮP","Pareigos / Pareigybė įstaigoje, kurios duomenimis grindžiamas įkainis (4)","Planuojamas etatų/ darbuotojų skaičius projekte","Darbo sutarties tipas (nuo tipo priklauso įmokos tarifas Nedarbo socialiniam draudimui)","Metai, už kuriuos planuojamas DU (pildoma, jei taikomas padidėjimas)","Planuojamų mėn. / valandų skaičius ","Planuojamas pareiginis DU/ valandinis įkainis,  Eur","Priedai ir priemokos, Eur (5)","Padidėjimas, proc.  (jei taikoma) (6)","Padidėjimo suma, Eur (jei taikoma)",null,null,"Planuojamas DU  įkainis be darbdavio įmokų iš viso, Eur","Planuojams DU įkainis su darbdavio  įmokomis iš viso, Eur","Darbo savaitės trukmė darbo dienomis","Kasmetinių atostogų darbo dienų skaičius","Nustatyta kasmetinių atostogų išmokų fiksuotoji norma","Planuojamos kasmetinių atostogų sąnaudos (įskaitant darbdavio įmokas), Eur","Planuojamas DU įkainis iš viso, Eur (su darbdavio įmokomis ir kasm. atost. )","Planuojama DU suma iš viso, Eur","DU įkainio pagrindimas (7)\n"]
[]
[]
[null,1,2,3,4,5,6,7,8,"9",10,11,12,13,15,16,"14=10+11+13",15,16,17,18,19,"20=15+19","21=6*9*20",22]
[null,{"$f":"ROW(A1)","v":1},"1.2.","1.2.1.","Ekspertas","Ekspertas",1,"Terminuota",null,36,{"$f":"1000","v":1000},{"$f":"+K15*0.2","v":200},0,{"$f":"ROUND((+K15+L15)*M15,2)","v":0},null,null,{"$f":"ROUND(K15+L15+N15+O15+P15,2)","v":1200},{"$f":"ROUND(IF($J$9=0%,0,(IF(H15=\"Terminuota\",(1+$J$9+0.0203)*(K15+L15+N15+P15+O15),(1+$J$9+0.0131)*(K15+L15+N15+P15+O15)))),2)","v":1229.8800000000001},5,20,{"$f":"IF(OR(S15=\"\",T15=\"\"),\"\",VLOOKUP(CONCATENATE(S15,\" dienų darbo savaitė\"),'Atostogų išmokų FN'!$A$7:$AH$8,T15-16)/100)","v":8.6300000000000002E-2},{"$f":"IF(R15=0,0,ROUND((R15*U15),2))","v":106.14},{"$f":"SUM(R15+V15)","v":1336.0200000000002},{"$f":"SUM(G15*J15*W15)","v":48096.720000000008},"pvz. darbo sutartis Nr. 2333, DU pažyma Nr. 1, ....."]
[null,{"$f":"ROW(A2)","v":2},"1.2.","1.2.1.","Analitikas","Inžinierius",1,"Terminuota","2024",100,25,0,0.08,{"$f":"ROUND((+K16+L16)*M16,2)","v":2},null,null,{"$f":"ROUND(K16+L16+N16+O16+P16,2)","v":27},27.67,5,41,{"$f":"IF(OR(S16=\"\",T16=\"\"),\"\",VLOOKUP(CONCATENATE(S16,\" dienų darbo savaitė\"),'Atostogų išmokų FN'!$A$7:$AH$8,T16-16)/100)","v":0.20019999999999999},5.54,33.21,3321]
[null,{"$f":"ROW(A3)","v":3},"1.4.","1.4.1.","Projekto specialistas"," Specialistas",0.5,"Neterminuota",null,300,{"$f":"15","v":15},0,0,0,null,null,{"$f":"ROUND(K17+L17+N17+O17+P17,2)","v":15},15.27,5,20,{"$f":"IF(OR(S17=\"\",T17=\"\"),\"\",VLOOKUP(CONCATENATE(S17,\" dienų darbo savaitė\"),'Atostogų išmokų FN'!$A$7:$AH$8,T17-16)/100)","v":8.6300000000000002E-2},1.32,16.59,2488.5]
[null,4,null,null,null,null,null,null,null,null,null,null,null,0,null,null,{"$f":"ROUND(K18+L18+N18+O18+P18,2)","v":0},0,null,null,{"$f":"IF(OR(S18=\"\",T18=\"\"),\"\",VLOOKUP(CONCATENATE(S18,\" dienų darbo savaitė\"),'Atostogų išmokų FN'!$A$7:$AH$8,T18-16)/100)","v":""},0,0,0]
[null,5,null,null,null,null,null,null,null,null,null,null,null,0,null,null,0,0,null,null,{"$f":"IF(OR(S19=\"\",T19=\"\"),\"\",VLOOKUP(CONCATENATE(S19,\" dienų darbo savaitė\"),'Atostogų išmokų FN'!$A$7:$AH$8,T19-16)/100)","v":""},0,0,0]
[null,6,null,null,null,null,null,null,null,null,null,null,null,0,null,null,0,0,null,null,{"$f":"IF(OR(S20=\"\",T20=\"\"),\"\",VLOOKUP(CONCATENATE(S20,\" dienų darbo savaitė\"),'Atostogų išmokų FN'!$A$7:$AH$8,T20-16)/100)","v":""},0,0,0]
[null,7,null,null,null,null,null,null,null,null,null,null,null,0,null,null,0,0,null,null,{"$f":"IF(OR(S21=\"\",T21=\"\"),\"\",VLOOKUP(CONCATENATE(S21,\" dienų darbo savaitė\"),'Atostogų išmokų FN'!$A$7:$AH$8,T21-16)/100)","v":""},0,0,0]
[null,8,null,null,null,null,null,null,null,null,null,null,null,0,null,null,0,0,null,null,{"$f":"IF(OR(S22=\"\",T22=\"\"),\"\",VLOOKUP(CONCATENATE(S22,\" dienų darbo savaitė\"),'Atostogų išmokų FN'!$A$7:$AH$8,T22-16)/100)","v":""},0,0,0]
[null,9,null,null,null,null,null,null,null,null,null,null,null,0,null,null,0,0,null,null,{"$f":"IF(OR(S23=\"\",T23=\"\"),\"\",VLOOKUP(CONCATENATE(S23,\" dienų darbo savaitė\"),'Atostogų išmokų FN'!$A$7:$AH$8,T23-16)/100)","v":""},0,0,0]
[null,10,null,null,null,null,null,null,null,null,null,null,null,0,null,null,0,0,null,null,{"$f":"IF(OR(S24=\"\",T24=\"\"),\"\",VLOOKUP(CONCATENATE(S24,\" dienų darbo savaitė\"),'Atostogų išmokų FN'!$A$7:$AH$8,T24-16)/100)","v":""},0,0,0]
[null,"Iš viso:",null,null,null,null,null,null,null,{"$f":"SUBTOTAL(9,J15:J24)","v":436},{"$f":"SUBTOTAL(9,K15:K24)","v":1040},{"$f":"SUBTOTAL(9,L15:L24)","v":200},null,{"$f":"SUBTOTAL(9,N15:N24)","v":2},{"$f":"SUBTOTAL(9,O15:O24)","v":0},null,{"$f":"SUBTOTAL(9,Q15:Q24)","v":1242},{"$f":"SUBTOTAL(9,R15:R24)","v":1272.8200000000002},null,null,null,{"$f":"SUBTOTAL(9,V15:V24)","v":113},{"$f":"SUBTOTAL(9,W15:W24)","v":1385.8200000000002},{"$f":"SUBTOTAL(9,X15:X24)","v":53906.220000000008}]
[]
[null,"(1) Organizacijos tipas pasirenkamas iš sąrašo. Atsižvelgiant į pasirinktą organizacijos tipą, nurodomas bendras įmokų tarifas Garantiniam fondui, Ilgalaikio darbo išmokų fondui ir Nelaimingų atsitikimų darbe ir profesinių ligų socialiniam draudimui."]
[null,"(2) Taikoma viešosioms įstaigoms, UAB, AB ir kt."]
[null,"(3) Taikoma politinėms partijoms, profesinėms sąjungoms, religinėms bendruomenėms ir bendrijoms."]
[null,"(4) analogiškos arba tos pačios pareigos/funkcijos įstaigoje. Jei įstaigoje nėra projekte numatomos pareigybės atitikmens ir istorinių duomenų, darbo užmokesčio dydis gali būti pagrįstas, remiantis oficialiosios statistikos portale (Rodiklių duomenų bazė) Valstybės duomenų agentūros skelbiamais naujausiais statistiniais darbuotojų vidutinio darbo užmokesčio duomenimis"]
[null,"https://osp.stat.gov.lt/statistiniu-rodikliu-analize?indicator=S3R0049#/  valandinis bruto"]
[null,"https://osp.stat.gov.lt/statistiniu-rodikliu-analize?indicator=S3R0050#/  mėnesinis bruto"]
[null,"(5) Planuojamas priedas ar priemoka turi atitikti  Rekomendacijų dėl projektų išlaidų atitikties Europos Sąjungos fondų reikalavimų  9.5. p. nurodytus tinkamų finansuoti išlaidų reikalavimus;"]
[null,"(6) Skaičiuojant planuojamą darbo valandos (mėnesio) įkainį gali būti įvertinamas numatomas įkainio kitimas projekto įgyvendinimo metu, remiantis Lietuvos banko interneto svetainėje lb.lt skelbiamomis naujausiomis darbo užmokesčio prognozėmis. Tačiau įgyvendinant projektą darbo užmokesčio padidėjimas turi būti pagrįstas ir visais atvejais atitikti Projektų administravimo ir finansavimo taisyklių (Taisyklių) 301.1 papunkčio reikalavimus (netaikoma ein. metams):"]
[null,"https://www.lb.lt/lt/mv-ekonomikos-analize-ir-prognozes"]
[null,"(7) Pagal Taisyklių 301.1. p. darbo užmokesčio išlaidos yra tinkamos finansuoti, jei jų dydis atitinka įprastą projekto vykdytojo, partnerio arba JP projekto vykdytojo darbo užmokesčio praktiką atitinkamos kategorijos pareigoms arba pagal taikomą nacionalinę teisę, kolektyvines sutartis ar oficialią statistiką. DU įkainio pagrindimui pateikti darbo užmokesčio dydį pagrindžiančius dokumentus (pvz.: nuasmenintas darbo sutartis, kurios sudarytos ne šiam projektui, o bendrai įstaigos praktikoje;  įstaigos DU priskaitymo ir išmokėjimo žiniaraščius 3- 12 mėn. (kuriuose matytųsi pareigos, dirbtas laikas, priskaitytas DU, priedai ir priemokos (jei taikoma); kt.). Biudžete numatytų išlaidų dydis turi neviršyti įprastai įstaigoje mokamo darbo užmokesčio dydžių tam tikrai pareigybei.\n\n\n"]
[]
[]
[]
[]
[]
[]
[]
[]
[]
[]
[]
[]
[]
[null,null,null,null,null,null,null,null,null,null,null,null,null,null,null,null,null,null,null," "]

{"sheet":"Atostogų išmokų FN","index":4,"n_rows":18,"n_cols":34,"rows_kept":18,"cut":false,"hidden":true,"merged":[[16,1,16,4],[17,1,17,4],[10,1,10,4],[4,3,4,33],[11,1,11,4],[12,1,12,4],[13,1,13,4],[14,1,14,4],[15,1,15,4]]}
[]
["KASMETINIŲ ATOSTOGŲ IŠMOKŲ FIKSUOTOSIOS NORMOS "]
[]
["Kasmetinių atostogų išmokų fiksuotosios normos, taikomos nuo 2017 m. liepos 1 d. darbuotojams, kuriems kasmetinės atostogos skaičiuojamos darbo dienomis"]
["Darbo savaitės trukmė",null,null,"                                  Kasmetinių atostogų išmokų fiksuotosios normos nuo tinkamų finansuoti darbo užmokesčio išlaidų, kai kasmetinių atostogų darbo dienų skaičius yra:"]
[null,null,null,20,21,22,23,24,25,26,27,28,29,30,31,32,33,34,35,36,37,38,39,40,41,42,43,44,45,46,47,48,49,50]
["5 dienų darbo savaitė",null,null,8.6300000000000008,10.44,10.44,10.44,10.44,10.44,12.35,12.35,12.35,12.35,12.35,14.99,14.99,14.99,14.99,14.99,14.99,17.25,17.25,17.25,18.89,20.02,20.02,20.02,20.02,20.02,20.02,20.02,20.02,20.02,20.02]
["6 dienų darbo savaitė",null,null,0,0,0,0,8.6300000000000008,10.44,10.44,10.44,10.44,10.44,10.44,12.35,12.35,12.35,12.35,12.35,12.35,14.99,14.99,14.99,14.99,14.99,14.99,17.25,17.25,17.25,17.25,17.25,18.89,20.02,20.02]
[]
[]
["Fiksuotosios normos\n dydis","FN taikymo sąlygos"]
["FN-05-01 – 8,63 proc.","Taikoma, kai priklauso 20 d. d. (jeigu dirbama 5 d. d. per savaitę) arba 24 d. d.  (jeigu dirbama 6 d. d. per savaitę) kasmetinės atostogos."]
["FN-05-02 – 10,44 proc.","Taikoma, kai priklauso nuo 21 iki 25 d. d. (jeigu dirbama 5 d. d. per savaitę)  arba nuo 25 iki 30 d. d. (jeigu dirbama 6 d. d. per savaitę) kasmetinės atostogos"]
["FN-05-03 – 12,35 proc.","Taikoma, kai priklauso nuo 26 iki 30 d. d. (jeigu dirbama 5 d. d. per savaitę) arba nuo 31 iki 36 d. d. (jeigu dirbama 6 d. d. per savaitę) kasmetinės atostogos"]
["FN-05-04 – 14,99 proc.","Taikoma, kai priklauso nuo 31 iki 36 d. d. (jeigu dirbama 5 d. d. per savaitę) arba  nuo 37 iki 42 d. d. (jeigu dirbama 6 d. d. per savaitę) kasmetinės atostogos"]
["FN-05-05 – 17,25 proc.","Taikoma, kai priklauso nuo 37 iki 39 d. d. (jeigu dirbama 5 d. d. per savaitę) arba  nuo 43 iki 47 d. d. (jeigu dirbama 6 d. d. per savaitę) kasmetinės atostogos"]
["FN-05-06 – 18,89 proc.","Taikoma, kai priklauso 40 d. d. (jeigu dirbama 5 d. d. per savaitę) arba 48 d. d. (jeigu dirbama 6 d. d. per savaitę) kasmetinės atostogos"]
["FN-05-07 – 20,02 proc.","Taikoma, kai priklauso nuo 41 d. d. (jeigu dirbama 5 d. d. per savaitę)  arba nuo 49 d. d. (jeigu dirbama 6 d. d. per savaitę) kasmetinės atostogos"]

{"sheet":"Papild.poilsio d. išmokų FN ","index":5,"n_rows":8,"n_cols":17,"rows_kept":8,"cut":false,"hidden":true,"merged":[[4,0,6,0],[4,1,6,1],[4,2,4,16]]}
["KASMETINIŲ ATOSTOGŲ IŠMOKŲ FIKSUOTŲJŲ NORMŲ NUSTATYMO TYRIMO ATASKAITOS"]
["3 priedas. Papildomų poilsio dienų išmokų fiksuotosios normos"]
[]
[]
["Darbo savaitės trukmė","Vidutinis mėnesio darbo valandų skaičius","Papildomų poilsio dienų išmokų fiksuotosios normos nuo tinkamų finansuoti darbo užmokesčio išlaidų, kai papildomų poilsio dienų skaičius per mėnesį yra (dienomis/valandomis):"]
[null,null,0.5,1,1.5,2,2.5,3,3.5,4,4.5,5,6,7,8,9,10]
[null,null,4,8,12,16,20,24,28,32,36,40,48,56,64,72,80]
["Bendra (5 ir 6 d.d. savaitė)",167.3,{"$f":"ROUND(C7/($B$8-C7)*100,2)","v":2.4500000000000002},5.0199999999999996,7.73,10.58,13.58,16.75,20.100000000000001,23.65,27.42,31.42,40.229999999999997,50.31,61.96,75.55,91.64]